Workbook

Sheet JM
A2: 2016 | D2: JM erfüllt? | J2: Bundesprogramm 25m | N2: Feldschiessen 25m | R2: Kant. Schützenfest (Verein) | V2: Spreitenbacher Pistolenschiessen | Z2: Bezirksverband Schiessen Lenzburg | AD2: Fuchshaldenschiessen Lupfig | AH2: Gruppenschessen Suhr | AL2: Reinacher Pistolenschiessen | AP2: EPK | AT2: Kant. Stich | BB2: Bestes feiwilligen Schiessen
B3: min. Schiessen | D3: 8 | F3: Erreichte | G3: Gewertete | L3: 200 | P3: 180 | T3: 100 | X3: 100 | AB3: 100 | AF3: 100 | AJ3: 100 | AN3: 100 | AR3: 100 | AV3: 100 | AZ3: 100 | BE3: 100
A4: Name | B4: Jahrgang | D4: Teilnahmen | F4: Ø % | G4: Ø % | H4: Rang Rpt | J4: Eff. Pt. | K4: Wert | L4: % | N4: Eff. Pt. | O4: Wert | P4: % | R4: Eff. Pt. | S4: Wert | T4: % | V4: Eff. Pt. | W4: Wert | X4: % | Z4: Eff. Pt. | AA4: Wert | AB4: % | AD4: Eff. Pt. | AE4: Wert | AF4: % | AH4: Eff. Pt. | AI4: Wert | AJ4: % | AL4: Eff. Pt. | AM4: Wert | AN4: % | AP4: Eff. Pt. | AQ4: Wert | AR4: % | AT4: Eff. Pt. | AU4: Wert | AV4: % | AX4: Eff. Pt. | AY4: Wert | AZ4: % | BC4: Eff. Pt | BD4: Wert | BE4: %
A6: Name | B6: 1947 | D6: =COUNT(K6,O6,S6,W6,AA6,AE6,AI6,AM6,AQ6,AU6,AY6,BD6) -> 8 | F6: =IF(ISERROR((L6+P6+T6+X6+AB6+AF6+AJ6+AN6+AR6+AV6+AZ6+BE6)/D6),"",(L6+P6+T6+X6+AB6+AF6+AJ6+AN6+AR6+AV6+AZ6+BE6)/D6) -> 0.9478472222 | G6: =IF(D6>=$D$3,F6,"-") -> 0.9478472222 | H6: =IF(ISNUMBER(G6),(RANK(G6,$G$6:$G$26,0)),"-") -> 2 | J6: 193 | K6: 193 | L6: =K6/$L$3 -> 0.965 | N6: 176 | O6: 176 | P6: =O6/$P$3 -> 0.9777777778 | R6: 144 | S6: 94 | T6: =S6/$T$3 -> 0.94 | V6: 92 | W6: 88 | X6: =W6/$X$3 -> 0.88 | Z6: 146 | AA6: 96 | AB6: =AA6/$AB$3 -> 0.96 | AD6: 97 | AE6: 97 | AF6: =AE6/$AF$3 -> 0.97 | AJ6: =AI6/$AJ$3 -> 0 | AN6: =AM6/$AN$3 -> 0 | AP6: 93 | AQ6: 93 | AR6: =AQ6/$AR$3 -> 0.93 | AT6: 96 | AU6: 96 | AV6: =AU6/$AV$3 -> 0.96 | AZ6: =AY6/$AV$3 -> 0 | BE6: =BD6/$AV$3 -> 0
A7: Name | B7: 1947 | D7: 8 | F7: 0.9502083333 | G7: 0.9502083333 | H7: 1 | J7: 190 | K7: 190 | L7: 0.95 | N7: 174 | O7: 174 | P7: 0.9666666667 | R7: 145 | S7: 95 | T7: 0.95 | V7: 99 | W7: 98.5 | X7: 0.985 | Z7: 139 | AA7: 89 | AB7: 0.89 | AD7: 95 | AE7: 95 | AF7: 0.95 | AJ7: 0 | AN7: 0 | AP7: 96 | AQ7: 96 | AR7: 0.96 | AT7: 95 | AU7: 95 | AV7: 0.95 | AZ7: 0 | BE7: 0
A8: Name | B8: 1947 | D8: 9 | F8: 0.9454938272 | G8: 0.9454938272 | H8: 3 | J8: 195 | K8: 195 | L8: 0.975 | N8: 179 | O8: 179 | P8: 0.9944444444 | R8: 92 | S8: 92 | T8: 0.92 | V8: 89 | W8: 89 | X8: 0.89 | Z8: 94 | AA8: 94 | AB8: 0.94 | AD8: 94 | AE8: 94 | AF8: 0.94 | AJ8: 0 | AN8: 0 | AP8: 95 | AQ8: 95 | AR8: 0.95 | AT8: 94 | AU8: 94 | AV8: 0.94 | AZ8: 0 | BB8: Kölliken 25m | BC8: 146 | BD8: 96 | BE8: 0.96
A9: Name | B9: 1947 | D9: 8 | F9: 0.9388888889 | G9: 0.9388888889 | H9: 4 | J9: 182 | K9: 182 | L9: 0.91 | N9: 173 | O9: 173 | P9: 0.9611111111 | R9: 143 | S9: 93 | T9: 0.93 | V9: 91 | W9: 91 | X9: 0.91 | Z9: 146 | AA9: 96 | AB9: 0.96 | AD9: 90 | AE9: 90 | AF9: 0.9 | AJ9: 0 | AN9: 0 | AP9: 97 | AQ9: 97 | AR9: 0.97 | AT9: 97 | AU9: 97 | AV9: 0.97 | AZ9: 0 | BE9: 0
A10: Name | B10: 1947 | D10: 7 | F10: 0.9384920635 | G10: - | H10: - | J10: 80 | K10: 195 | L10: 0.975 | N10: 170 | O10: 170 | P10: 0.9444444444 | R10: 90 | S10: 90 | T10: 0.9 | V10: 96 | W10: 94 | X10: 0.94 | Z10: 147 | AA10: 97 | AB10: 0.97 | AF10: 0 | AJ10: 0 | AN10: 0 | AP10: 91 | AQ10: 91 | AR10: 0.91 | AT10: 93 | AU10: 93 | AV10: 0.93 | AZ10: 0 | BE10: 0
A11: Name | B11: 1947 | D11: 9 | F11: 0.9204938272 | G11: 0.9204938272 | H11: 5 | J11: 169 | K11: 169 | L11: 0.845 | N11: 170 | O11: 170 | P11: 0.9444444444 | R11: 141 | S11: 91 | T11: 0.91 | V11: 95 | W11: 92.5 | X11: 0.925 | Z11: 143 | AA11: 93 | AB11: 0.93 | AD11: 96 | AE11: 96 | AF11: 0.96 | AJ11: 0 | AN11: 0 | AP11: 91 | AQ11: 91 | AR11: 0.91 | AT11: 92 | AU11: 92 | AV11: 0.92 | AZ11: 0 | BB11: Kölliken 25m | BC11: 144 | BD11: 94 | BE11: 0.94
A12: Name | B12: 1947 | D12: 7 | F12: 0.9218253968 | G12: - | H12: - | J12: 195 | K12: 195 | L12: 0.975 | N12: 176 | O12: 176 | P12: 0.9777777778 | R12: 86 | S12: 86 | T12: 0.86 | V12: 94 | W12: 94 | X12: 0.94 | Z12: 94 | AA12: 94 | AB12: 0.94 | AD12: 86 | AE12: 86 | AF12: 0.86 | AJ12: 0 | AN12: 0 | AR12: 0 | AV12: 0 | AZ12: 0 | BB12: Kölliken 50m | BC12: 135 | BD12: 90 | BE12: 0.9
A13: Name | B13: 1947 | D13: 7 | F13: 0.9001587302 | G13: - | H13: - | J13: 67 | K13: 184 | L13: 0.92 | N13: 164 | O13: 164 | P13: 0.9111111111 | R13: 133 | S13: 84 | T13: 0.84 | V13: 91 | W13: 87 | X13: 0.87 | AB13: 0 | AD13: 93 | AE13: 93 | AF13: 0.93 | AJ13: 0 | AN13: 0 | AP13: 91 | AQ13: 91 | AR13: 0.91 | AT13: 92 | AU13: 92 | AV13: 0.92 | AZ13: 0 | BE13: 0
A14: Name | B14: 1947 | D14: 1 | F14: 0.9 | G14: - | H14: - | L14: 0 | P14: 0 | T14: 0 | X14: 0 | Z14: 90 | AA14: 90 | AB14: 0.9 | AF14: 0 | AJ14: 0 | AN14: 0 | AR14: 0 | AV14: 0 | AZ14: 0 | BE14: 0
A15: Name | B15: 1947 | D15: 6 | F15: 0.8919444444 | G15: - | H15: - | J15: 179 | K15: 179 | L15: 0.895 | N15: 165 | O15: 165 | P15: 0.9166666667 | R15: 132 | S15: 83 | T15: 0.83 | V15: 92 | W15: 88 | X15: 0.88 | AB15: 0 | AF15: 0 | AJ15: 0 | AN15: 0 | AP15: 91 | AQ15: 91 | AR15: 0.91 | AT15: 92 | AU15: 92 | AV15: 0.92 | AZ15: 0 | BE15: 0
A16: Name | B16: 1947 | D16: 3 | F16: 0.8788888889 | G16: - | H16: - | L16: 0 | N16: 69 | O16: 165 | P16: 0.9166666667 | R16: 87 | S16: 87 | T16: 0.87 | X16: 0 | AB16: 0 | AF16: 0 | AJ16: 0 | AN16: 0 | AR16: 0 | AT16: 85 | AU16: 85 | AV16: 0.85 | AZ16: 0 | BE16: 0
A17: Name | B17: 1947 | D17: 7 | F17: 0.8458730159 | G17: - | H17: - | J17: 168 | K17: 168 | L17: 0.84 | N17: 155 | O17: 155 | P17: 0.8611111111 | R17: 129 | S17: 81 | T17: 0.81 | V17: 83 | W17: 83 | X17: 0.83 | Z17: 86 | AA17: 86 | AB17: 0.86 | AD17: 84 | AE17: 84 | AF17: 0.84 | AJ17: 0 | AN17: 0 | AR17: 0 | AT17: 88 | AU17: 88 | AV17: 0.88 | AZ17: 0 | BE17: 0
A18: Name | B18: 1947 | D18: 1 | F18: 0.6722222222 | G18: - | H18: - | L18: 0 | N18: 45 | O18: 121 | P18: 0.6722222222 | T18: 0 | X18: 0 | AB18: 0 | AF18: 0 | AJ18: 0 | AN18: 0 | AR18: 0 | AV18: 0 | AZ18: 0 | BE18: 0
A19: Name | B19: 1947 | D19: 2 | F19: 0.62 | G19: - | H19: - | J19: 32 | K19: 108 | L19: 0.54 | N19: 126 | O19: 126 | P19: 0.7 | T19: 0 | X19: 0 | AB19: 0 | AF19: 0 | AJ19: 0 | AN19: 0 | AR19: 0 | AV19: 0 | AZ19: 0 | BE19: 0
A20: Name | B20: 1947 | D20: 1 | F20: 0.58 | G20: - | H20: - | L20: 0 | P20: 0 | R20: 58 | S20: 58 | T20: 0.58 | X20: 0 | AB20: 0 | AF20: 0 | AJ20: 0 | AN20: 0 | AR20: 0 | AV20: 0 | AZ20: 0 | BE20: 0
A21: Name | B21: 1947 | D21: =COUNT(K21,O21,S21,W21,AA21,AE21,AI21,AM21,AQ21,AU21,AY21,BD21) -> 0 | F21: =IF(ISERROR((L21+P21+T21+X21+AB21+AF21+AJ21+AN21+AR21+AV21+AZ21+BE21)/D21),"",(L21+P21+T21+X21+AB21+AF21+AJ21+AN21+AR21+AV21+AZ21+BE21)/D21) ->  | G21: =IF(D21>=$D$3,F21,"-") -> - | H21: =IF(ISNUMBER(G21),(RANK(G21,$G$6:$G$26,0)),"-") -> - | L21: =K21/$L$3 -> 0 | P21: =O21/$P$3 -> 0 | T21: =S21/$T$3 -> 0 | X21: =W21/$X$3 -> 0 | AB21: =AA21/$AB$3 -> 0 | AF21: =AE21/$AF$3 -> 0 | AJ21: =AI21/$AJ$3 -> 0 | AN21: =AM21/$AN$3 -> 0 | AR21: =AQ21/$AR$3 -> 0 | AV21: =AU21/$AV$3 -> 0 | AZ21: =AY21/$AV$3 -> 0 | BE21: =BD21/$AV$3 -> 0
A22: Name | B22: 1947 | D22: 0 | G22: - | H22: - | L22: 0 | P22: 0 | T22: 0 | X22: 0 | AB22: 0 | AF22: 0 | AJ22: 0 | AN22: 0 | AR22: 0 | AV22: 0 | AZ22: 0 | BE22: 0
A23: Name | B23: 1947 | D23: 0 | G23: - | H23: - | L23: 0 | P23: 0 | T23: 0 | X23: 0 | AB23: 0 | AF23: 0 | AJ23: 0 | AN23: 0 | AR23: 0 | AV23: 0 | AZ23: 0 | BE23: 0
A24: Name | B24: 1947 | D24: 0 | G24: - | H24: - | L24: 0 | P24: 0 | T24: 0 | X24: 0 | AB24: 0 | AF24: 0 | AJ24: 0 | AN24: 0 | AR24: 0 | AV24: 0 | AZ24: 0 | BE24: 0
A25: Name | B25: 1947 | D25: 0 | G25: - | H25: - | L25: 0 | P25: 0 | T25: 0 | X25: 0 | AB25: 0 | AF25: 0 | AJ25: 0 | AN25: 0 | AR25: 0 | AV25: 0 | AZ25: 0 | BE25: 0
F26: =IF(ISERROR((L26+P26+T26+X26+AB26+AF26+AJ26+AN26+AR26+AV26+AZ26+BE26)/D26),"",(L26+P26+T26+X26+AB26+AF26+AJ26+AN26+AR26+AV26+AZ26+BE26)/D26) ->  | G26: =IF(D26>=$D$3,F26,"-") -> - | H26: =IF(ISNUMBER(G26),(RANK(G26,$G$6:$G$26,0)),"-") -> - | L26: =K26/$L$3 -> 0 | P26: =O26/$P$3 -> 0 | T26: =S26/$T$3 -> 0 | X26: =W26/$X$3 -> 0 | AB26: =AA26/$AB$3 -> 0 | AF26: =AE26/$AF$3 -> 0 | AJ26: =AI26/$AJ$3 -> 0 | AN26: =AM26/$AN$3 -> 0 | AR26: =AQ26/$AR$3 -> 0 | AV26: =AU26/$AV$3 -> 0 | AZ26: =AY26/$AV$3 -> 0 | BE26: =BD26/$AV$3 -> 0

Sheet Ergebnis2017
A1: JM Steigerungspreis | D1: 2016
D3: ="JM "&D1 -> JM 2016 | G3: ="JM "&D1-1 -> JM 2015 | J3: Veränderung gegenüber Vorjahr
A4: Name | B4: Jahrgang | D4: % | E4: Rang | G4: % | H4: Rang | K4: Rang
A6: Name | B6: 1948 | E6: =IF(D6=0,"-",RANK(D6,$D$6:$D$14)) -> - | G6: 0.881 | H6: =IF(G6=0,"-",RANK(G6,$G$6:$G$14)) -> 6 | J6: =IF(G6=0,"- -",D6-G6) -> -0.881 | K6: =IF(J6="- -","-",RANK(J6,$J$6:$J$14)) -> 1
A7: Name | B7: 1948 | E7: - | G7: 0.938 | H7: 2 | J7: -0.938 | K7: 5
A8: Name | B8: 1948 | E8: - | G8: 0.931 | H8: 3 | J8: -0.931 | K8: 4
A9: Name | B9: 1948 | E9: - | G9: 0.94 | H9: 1 | J9: -0.94 | K9: 6
A10: Name | B10: 1948 | E10: - | G10: 0.927 | H10: 5 | J10: -0.927 | K10: 2
A11: Name | B11: 1948 | E11: - | G11: 0.929 | H11: 4 | J11: -0.929 | K11: 3
A12: Name | B12: 1948 | E12: - | H12: - | J12: - - | K12: -
A13: Name | B13: 1948 | E13: - | H13: - | J13: - - | K13: -
A14: Name | B14: 1948 | E14: - | H14: - | J14: - - | K14: -
A17: Historie
A19: Name | B19: JM | J19: Steigerung
A22: Name | B22: 2016 | J22: 0.033
A23: Name | B23: 2015 | J23: 0.005
A24: Name | B24: 2014 | J24: 0.017
A25: Name | B25: 2013 | C25: 2013 | J25: 0.0517
A26: Name | B26: 2012 | J26: 0.0578
A27: Name | B27: 2011 | J27: 0.0446
A28: Name | B28: 2010 | J28: 0.0214
A29: Name | B29: 2009 | J29: 0.0332
A30: Name | B30: 2008 | J30: 0.0409
A31: Name | B31: 2007 | J31: 0.0145
A32: Name | B32: 2006 | J32: 0.03
A33: Name | B33: 2005 | J33: 0.1107
A34: Name | B34: 2004 | J34: 0.0197
A35: Name | B35: 2003 | J35: 0.0768
A36: Name | B36: 2002 | J36: 0.0156

Sheet Parameter
A1: Anlässe
A2: 1 | B2: Bundesprogramm 25m | C2: BuPro
A3: 2 | B3: Feldschiessen 25m | C3: FS
A4: 3 | B4: Kant. Schützenfest (Verein) | C4: KS AG
A5: 4 | B5: Spreitenbacher Pistolenschiessen | C5: S PS
A6: 5 | B6: Bezirksverband Schiessen Lenzburg | C6: BV L
A7: 6 | B7: Fuchshaldenschiessen Lupfig | C7: FS L
A8: 7 | B8: Gruppenschessen Suhr | C8: Grs S
A9: 8 | B9: Reinacher Pistolenschiessen | C9: R PS
A10: 9 | B10: EPK | C10: EPK
A11: 10 | B11: Kant. Stich | C11: KS
A12: 11
A13: 12 | B13: Bestes feiwilligen Schiessen | C13: Frw
A18: Umrechnungen
B19: Umre FS-BuPro | D19: Der Lead hat immer das 25m Resultat
B20: Umre 10S 25m & 50m | D20: 10 Schüsse sind auf 25 einfacher als 10 Schüsse auf 50m --> 25m wird angepasst, Ergebnis in %
B21: Umre 15S 25m - 10S 50m | D21: 15 Schüsse sind auf 25 einfacher als 10 Schüsse auf 50m --> 25m wird angepasst, Ergebnis in %
B22: Umre 15S 25m & 50m | D22: 15 Schüsse sind auf 25 einfacher als 15 Schüsse auf 50m --> 25m wird angepasst, Ergebnis in %
B23: Umre 20S 25m - 10S 50m | D23: 20 Schüsse sind auf 25 einfacher als 10 Schüsse auf 50m --> 25m wird angepasst, Ergebnis in %
B24: Umre 50m Morgarten - 10S 50m | D24: 10 Schüsse sind auf P10 - 50m einfacher als 10 Schüsse Morgartenscheibe - 50m --> Ergebnis in %

Sheet Umre FS-BuPro
A1: Umrechnungstabelle Feldschiessen | E1: Umrechnungstabelle Obligatorisch
A2: 25m | B2: <--> | C2: 50m | E2: 25m | F2: <--> | G2: 50m
A3: 180 | B3: <--> | C3: 90 | E3: 200 | F3: <--> | G3: 90
A4: 179 | B4: <--> | C4: 89 | E4: 199 | F4: <--> | G4: 89
A5: 179 | B5: <--> | C5: 88 | E5: 199 | F5: <--> | G5: 88
A6: 178 | B6: <--> | C6: 87 | E6: 198 | F6: <--> | G6: 87
A7: 178 | B7: <--> | C7: 86 | E7: 198 | F7: <--> | G7: 86
A8: 177 | B8: <--> | C8: 85 | E8: 197 | F8: <--> | G8: 85
A9: 177 | B9: <--> | C9: 84 | E9: 197 | F9: <--> | G9: 84
A10: 176 | B10: <--> | C10: 83 | E10: 196 | F10: <--> | G10: 83
A11: 176 | B11: <--> | C11: 82 | E11: 196 | F11: <--> | G11: 82
A12: 175 | B12: <--> | C12: 81 | E12: 195 | F12: <--> | G12: 81
A13: 175 | B13: <--> | C13: 80 | E13: 195 | F13: <--> | G13: 80
A14: 174 | B14: <--> | C14: 79 | E14: 194 | F14: <--> | G14: 79
A15: 174 | B15: <--> | C15: 78 | E15: 194 | F15: <--> | G15: 78
A16: 173 | B16: <--> | C16: 77 | E16: 192 | F16: <--> | G16: 77
A17: 172 | B17: <--> | C17: 76 | E17: 192 | F17: <--> | G17: 76
A18: 171 | B18: <--> | C18: 75 | E18: 190 | F18: <--> | G18: 75
A19: 170 | B19: <--> | C19: 74 | E19: 188 | F19: <--> | G19: 74
A20: 169 | B20: <--> | C20: 73 | E20: 188 | F20: <--> | G20: 73
A21: 168 | B21: <--> | C21: 72 | E21: 186 | F21: <--> | G21: 72
A22: 167 | B22: <--> | C22: 71 | E22: 186 | F22: <--> | G22: 71
A23: 166 | B23: <--> | C23: 70 | E23: 185 | F23: <--> | G23: 70
A24: 165 | B24: <--> | C24: 69 | E24: 185 | F24: <--> | G24: 69
A25: 164 | B25: <--> | C25: 68 | E25: 184 | F25: <--> | G25: 68
A26: 163 | B26: <--> | C26: 67 | E26: 184 | F26: <--> | G26: 67
A27: 162 | B27: <--> | C27: 66 | E27: 182 | F27: <--> | G27: 66
A28: 161 | B28: <--> | C28: 65 | E28: 182 | F28: <--> | G28: 65
A29: 159 | B29: <--> | C29: 64 | E29: 180 | F29: <--> | G29: 64
A30: 157 | B30: <--> | C30: 63 | E30: 180 | F30: <--> | G30: 63
A31: 155 | B31: <--> | C31: 62 | E31: 178 | F31: <--> | G31: 62
A32: 153 | B32: <--> | C32: 61 | E32: 178 | F32: <--> | G32: 61
A33: 151 | B33: <--> | C33: 60 | E33: 176 | F33: <--> | G33: 60
A34: 149 | B34: <--> | C34: 59 | E34: 176 | F34: <--> | G34: 59
A35: 147 | B35: <--> | C35: 58 | E35: 174 | F35: <--> | G35: 58
A36: 145 | B36: <--> | C36: 57 | E36: 174 | F36: <--> | G36: 57
A37: 143 | B37: <--> | C37: 56 | E37: 172 | F37: <--> | G37: 56
A38: 141 | B38: <--> | C38: 55 | E38: 172 | F38: <--> | G38: 55
A39: 139 | B39: <--> | C39: 54 | E39: 170 | F39: <--> | G39: 54
A40: 137 | B40: <--> | C40: 53 | E40: 168 | F40: <--> | G40: 53
A41: 135 | B41: <--> | C41: 52 | E41: 168 | F41: <--> | G41: 52
A42: 133 | B42: <--> | C42: 51 | E42: 168 | F42: <--> | G42: 51
A43: 131 | B43: <--> | C43: 50 | E43: 162 | F43: <--> | G43: 50
A44: 129 | B44: <--> | C44: 49 | E44: 159 | F44: <--> | G44: 49
A45: 127 | B45: <--> | C45: 48 | E45: 156 | F45: <--> | G45: 48
A46: 125 | B46: <--> | C46: 47 | E46: 153 | F46: <--> | G46: 47
A47: 123 | B47: <--> | C47: 46 | E47: 150 | F47: <--> | G47: 46
A48: 121 | B48: <--> | C48: 45 | E48: 147 | F48: <--> | G48: 45
A49: 119 | B49: <--> | C49: 44 | E49: 144 | F49: <--> | G49: 44
A50: 117 | B50: <--> | C50: 43 | E50: 141 | F50: <--> | G50: 43
A51: 115 | B51: <--> | C51: 42 | E51: 138 | F51: <--> | G51: 42
A52: 113 | B52: <--> | C52: 41 | E52: 135 | F52: <--> | G52: 41
A53: 111 | B53: <--> | C53: 40 | E53: 132 | F53: <--> | G53: 40
A54: 109 | B54: <--> | C54: 39 | E54: 129 | F54: <--> | G54: 39
A55: 107 | B55: <--> | C55: 38 | E55: 126 | F55: <--> | G55: 38
A56: 105 | B56: <--> | C56: 37 | E56: 123 | F56: <--> | G56: 37
A57: 103 | B57: <--> | C57: 36 | E57: 120 | F57: <--> | G57: 36
A58: 101 | B58: <--> | C58: 35 | E58: 117 | F58: <--> | G58: 35
A59: 99 | B59: <--> | C59: 34 | E59: 114 | F59: <--> | G59: 34
A60: 97 | B60: <--> | C60: 33 | E60: 111 | F60: <--> | G60: 33
A61: 95 | B61: <--> | C61: 32 | E61: 108 | F61: <--> | G61: 32
A62: 93 | B62: <--> | C62: 31 | E62: 105 | F62: <--> | G62: 31
A63: 90 | B63: <--> | C63: 30 | E63: 102 | F63: <--> | G63: 30
A64: 87 | B64: <--> | C64: 29 | E64: 99 | F64: <--> | G64: 29
A65: 84 | B65: <--> | C65: 28 | E65: 96 | F65: <--> | G65: 28
A66: 81 | B66: <--> | C66: 27 | E66: 93 | F66: <--> | G66: 27
A67: 78 | B67: <--> | C67: 26 | E67: 90 | F67: <--> | G67: 26
A68: 75 | B68: <--> | C68: 25 | E68: 87 | F68: <--> | G68: 25
A69: 72 | B69: <--> | C69: 24 | E69: 84 | F69: <--> | G69: 24
A70: 69 | B70: <--> | C70: 23 | E70: 81 | F70: <--> | G70: 23
A71: 66 | B71: <--> | C71: 22 | E71: 78 | F71: <--> | G71: 22
A72: 63 | B72: <--> | C72: 21 | E72: 75 | F72: <--> | G72: 21
A73: 60 | B73: <--> | C73: 20 | E73: 72 | F73: <--> | G73: 20
A74: 57 | B74: <--> | C74: 19 | E74: 68 | F74: <--> | G74: 19
A75: 54 | B75: <--> | C75: 18 | E75: 65 | F75: <--> | G75: 18
A76: 51 | B76: <--> | C76: 17 | E76: 62 | F76: <--> | G76: 17
A77: 48 | B77: <--> | C77: 16 | E77: 59 | F77: <--> | G77: 16
A78: 45 | B78: <--> | C78: 15 | E78: 56 | F78: <--> | G78: 15
A79: 42 | B79: <--> | C79: 14 | E79: 53 | F79: <--> | G79: 14
A80: 39 | B80: <--> | C80: 13 | E80: 50 | F80: <--> | G80: 13
A81: 36 | B81: <--> | C81: 12 | E81: 47 | F81: <--> | G81: 12
A82: 33 | B82: <--> | C82: 11 | E82: 44 | F82: <--> | G82: 11
A83: 30 | B83: <--> | C83: 10 | E83: 40 | F83: <--> | G83: 10
A84: 27 | B84: <--> | C84: 9 | E84: 36 | F84: <--> | G84: 9
A85: 24 | B85: <--> | C85: 8 | E85: 32 | F85: <--> | G85: 8
A86: 21 | B86: <--> | C86: 7 | E86: 28 | F86: <--> | G86: 7
A87: 18 | B87: <--> | C87: 6 | E87: 24 | F87: <--> | G87: 6
A88: 15 | B88: <--> | C88: 5 | E88: 20 | F88: <--> | G88: 5
A89: 12 | B89: <--> | C89: 4 | E89: 16 | F89: <--> | G89: 4
A90: 9 | B90: <--> | C90: 3 | E90: 12 | F90: <--> | G90: 3
A91: 6 | B91: <--> | C91: 2 | E91: 8 | F91: <--> | G91: 2
A92: 3 | B92: <--> | C92: 1 | E92: 4 | F92: <--> | G92: 1

Sheet Umre 10S 25m & 50m
A1: Umrechnungstabellen 10 Schuss 25m und 50m
A2: Punkte auf 50m | B2: --> | C2: % | E2: Punkte auf 25m | F2: --> | G2: %
A3: 100 | B3: --> | C3: 100 | E3: 100 | F3: --> | G3: =G4+1.5 -> 100
A4: 99 | B4: --> | C4: 99 | E4: 99 | F4: --> | G4: 98.5
A5: 98 | B5: --> | C5: 98 | E5: 98 | F5: --> | G5: 97
A6: 97 | B6: --> | C6: 97 | E6: 97 | F6: --> | G6: 95.5
A7: 96 | B7: --> | C7: 96 | E7: 96 | F7: --> | G7: 94
A8: 95 | B8: --> | C8: 95 | E8: 95 | F8: --> | G8: 92.5
A9: 94 | B9: --> | C9: 94 | E9: 94 | F9: --> | G9: 91
A10: 93 | B10: --> | C10: 93 | E10: 93 | F10: --> | G10: =G11+1.5 -> 89.5
A11: 92 | B11: --> | C11: 92 | E11: 92 | F11: --> | G11: 88
A12: 91 | B12: --> | C12: 91 | E12: 91 | F12: --> | G12: =G11-1 -> 87
A13: 90 | B13: --> | C13: 90 | E13: 90 | F13: --> | G13: =G12-1 -> 86
A14: 89 | B14: --> | C14: 89 | E14: 89 | F14: --> | G14: 85
A15: 88 | B15: --> | C15: 88 | E15: 88 | F15: --> | G15: 84
A16: 87 | B16: --> | C16: 87 | E16: 87 | F16: --> | G16: 83
A17: 86 | B17: --> | C17: 86 | E17: 86 | F17: --> | G17: 82
A18: 85 | B18: --> | C18: 85 | E18: 85 | F18: --> | G18: 81
A19: 84 | B19: --> | C19: 84 | E19: 84 | F19: --> | G19: 80
A20: 83 | B20: --> | C20: 83 | E20: 83 | F20: --> | G20: 79
A21: 82 | B21: --> | C21: 82 | E21: 82 | F21: --> | G21: 78
A22: 81 | B22: --> | C22: 81 | E22: 81 | F22: --> | G22: 77
A23: 80 | B23: --> | C23: 80 | E23: 80 | F23: --> | G23: 76
A24: 79 | B24: --> | C24: 79 | E24: 79 | F24: --> | G24: 75
A25: 78 | B25: --> | C25: 78 | E25: 78 | F25: --> | G25: 74
A26: 77 | B26: --> | C26: 77 | E26: 77 | F26: --> | G26: 73
A27: 76 | B27: --> | C27: 76 | E27: 76 | F27: --> | G27: 72
A28: 75 | B28: --> | C28: 75 | E28: 75 | F28: --> | G28: 71
A29: 74 | B29: --> | C29: 74 | E29: 74 | F29: --> | G29: 70
A30: 73 | B30: --> | C30: 73 | E30: 73 | F30: --> | G30: 69
A31: 72 | B31: --> | C31: 72 | E31: 72 | F31: --> | G31: 68
A32: 71 | B32: --> | C32: 71 | E32: 71 | F32: --> | G32: 67
A33: 70 | B33: --> | C33: 70 | E33: 70 | F33: --> | G33: 66
A34: 69 | B34: --> | C34: 69 | E34: 69 | F34: --> | G34: 65
A35: 68 | B35: --> | C35: 68 | E35: 68 | F35: --> | G35: 64
A36: 67 | B36: --> | C36: 67 | E36: 67 | F36: --> | G36: 63
A37: 66 | B37: --> | C37: 66 | E37: 66 | F37: --> | G37: 62
A38: 65 | B38: --> | C38: 65 | E38: 65 | F38: --> | G38: 61
A39: 64 | B39: --> | C39: 64 | E39: 64 | F39: --> | G39: 60
A40: 63 | B40: --> | C40: 63 | E40: 63 | F40: --> | G40: 59
A41: 62 | B41: --> | C41: 62 | E41: 62 | F41: --> | G41: 58
A42: 61 | B42: --> | C42: 61 | E42: 61 | F42: --> | G42: 57
A43: 60 | B43: --> | C43: 60 | E43: 60 | F43: --> | G43: 56
A44: 59 | B44: --> | C44: 59 | E44: 59 | F44: --> | G44: 55
A45: 58 | B45: --> | C45: 58 | E45: 58 | F45: --> | G45: 54
A46: 57 | B46: --> | C46: 57 | E46: 57 | F46: --> | G46: 53
A47: 56 | B47: --> | C47: 56 | E47: 56 | F47: --> | G47: 52
A48: 55 | B48: --> | C48: 55 | E48: 55 | F48: --> | G48: 51
A49: 54 | B49: --> | C49: 54 | E49: 54 | F49: --> | G49: 50
A50: 53 | B50: --> | C50: 53 | E50: 53 | F50: --> | G50: 49
A51: 52 | B51: --> | C51: 52 | E51: 52 | F51: --> | G51: 48
A52: 51 | B52: --> | C52: 51 | E52: 51 | F52: --> | G52: 47
A53: 50 | B53: --> | C53: 50 | E53: 50 | F53: --> | G53: 46
A54: 49 | B54: --> | C54: 49 | E54: 49 | F54: --> | G54: 45
A55: 48 | B55: --> | C55: 48 | E55: 48 | F55: --> | G55: 44
A56: 47 | B56: --> | C56: 47 | E56: 47 | F56: --> | G56: 43
A57: 46 | B57: --> | C57: 46 | E57: 46 | F57: --> | G57: 42
A58: 45 | B58: --> | C58: 45 | E58: 45 | F58: --> | G58: 41
A59: 44 | B59: --> | C59: 44 | E59: 44 | F59: --> | G59: 40
A60: 43 | B60: --> | C60: 43 | E60: 43 | F60: --> | G60: 39
A61: 42 | B61: --> | C61: 42 | E61: 42 | F61: --> | G61: 38
A62: 41 | B62: --> | C62: 41 | E62: 41 | F62: --> | G62: 37
A63: 40 | B63: --> | C63: 40 | E63: 40 | F63: --> | G63: 36
A64: 39 | B64: --> | C64: 39 | E64: 39 | F64: --> | G64: 35
A65: 38 | B65: --> | C65: 38 | E65: 38 | F65: --> | G65: 34
A66: 37 | B66: --> | C66: 37 | E66: 37 | F66: --> | G66: 33
A67: 36 | B67: --> | C67: 36 | E67: 36 | F67: --> | G67: 32
A68: 35 | B68: --> | C68: 35 | E68: 35 | F68: --> | G68: 31
A69: 34 | B69: --> | C69: 34 | E69: 34 | F69: --> | G69: 30
A70: 33 | B70: --> | C70: 33 | E70: 33 | F70: --> | G70: 29
A71: 32 | B71: --> | C71: 32 | E71: 32 | F71: --> | G71: 28
A72: 31 | B72: --> | C72: 31 | E72: 31 | F72: --> | G72: 27
A73: 30 | B73: --> | C73: 30 | E73: 30 | F73: --> | G73: 26
A74: 29 | B74: --> | C74: 29 | E74: 29 | F74: --> | G74: 25
A75: 28 | B75: --> | C75: 28 | E75: 28 | F75: --> | G75: 24
A76: 27 | B76: --> | C76: 27 | E76: 27 | F76: --> | G76: 23
A77: 26 | B77: --> | C77: 26 | E77: 26 | F77: --> | G77: =G76-1 -> 22
A78: 25 | B78: --> | C78: 25 | E78: 25 | F78: --> | G78: 21
A79: 24 | B79: --> | C79: 24 | E79: 24 | F79: --> | G79: 20
A80: 23 | B80: --> | C80: 23 | E80: 23 | F80: --> | G80: 19
A81: 22 | B81: --> | C81: 22 | E81: 22 | F81: --> | G81: 18
A82: 21 | B82: --> | C82: 21 | E82: 21 | F82: --> | G82: 17
A83: 20 | B83: --> | C83: 20 | E83: 20 | F83: --> | G83: 16
A84: 19 | B84: --> | C84: 19 | E84: 19 | F84: --> | G84: 15
A85: 18 | B85: --> | C85: 18 | E85: 18 | F85: --> | G85: 14
A86: 17 | B86: --> | C86: 17 | E86: 17 | F86: --> | G86: 13
A87: 16 | B87: --> | C87: 16 | E87: 16 | F87: --> | G87: 12
A88: 15 | B88: --> | C88: 15 | E88: 15 | F88: --> | G88: 11
A89: 14 | B89: --> | C89: 14 | E89: 14 | F89: --> | G89: 10
A90: 13 | B90: --> | C90: 13 | E90: 13 | F90: --> | G90: 9
A91: 12 | B91: --> | C91: 12 | E91: 12 | F91: --> | G91: 8
A92: 11 | B92: --> | C92: 11 | E92: 11 | F92: --> | G92: 7
A93: 10 | B93: --> | C93: 10 | E93: 10 | F93: --> | G93: 6
A94: 9 | B94: --> | C94: 9 | E94: 9 | F94: --> | G94: 5
A95: 8 | B95: --> | C95: 8 | E95: 8 | F95: --> | G95: 4
A96: 7 | B96: --> | C96: 7 | E96: 7 | F96: --> | G96: 3
A97: 6 | B97: --> | C97: 6 | E97: 6 | F97: --> | G97: 2
A98: 5 | B98: --> | C98: 5 | E98: 5 | F98: --> | G98: 1
A99: 4 | B99: --> | C99: 4 | E99: 4 | F99: --> | G99: 0
A100: 3 | B100: --> | C100: 3 | E100: 3 | F100: --> | G100: 0
A101: 2 | B101: --> | C101: 2 | E101: 2 | F101: --> | G101: 0
A102: 1 | B102: --> | C102: 1 | E102: 1 | F102: --> | G102: 0

Sheet Umre 15S 25m - 10S 50m
A1: Umrechnungstabellen 15 Schuss 25m / 10 Schuss 50m
A2: Punkte bei 15 Schuss auf 25m | B2: --> | C2: % | E2: Punkte bei 10 Schuss auf 50m | F2: --> | G2: %
A3: 150 | B3: --> | C3: 100 | E3: 100 | F3: --> | G3: 100
A4: 149 | B4: --> | C4: 99 | E4: 99 | F4: --> | G4: 99
A5: 148 | B5: --> | C5: 98 | E5: 98 | F5: --> | G5: 98
A6: 147 | B6: --> | C6: 97 | E6: 97 | F6: --> | G6: 97
A7: 146 | B7: --> | C7: 96 | E7: 96 | F7: --> | G7: 96
A8: 145 | B8: --> | C8: 95 | E8: 95 | F8: --> | G8: 95
A9: 144 | B9: --> | C9: 94 | E9: 94 | F9: --> | G9: 94
A10: 143 | B10: --> | C10: 93 | E10: 93 | F10: --> | G10: 93
A11: 142 | B11: --> | C11: 92 | E11: 92 | F11: --> | G11: 92
A12: 141 | B12: --> | C12: 91 | E12: 91 | F12: --> | G12: 91
A13: 140 | B13: --> | C13: 90 | E13: 90 | F13: --> | G13: 90
A14: 139 | B14: --> | C14: 89 | E14: 89 | F14: --> | G14: 89
A15: 138 | B15: --> | C15: 88 | E15: 88 | F15: --> | G15: 88
A16: 137 | B16: --> | C16: 87 | E16: 87 | F16: --> | G16: 87
A17: 136 | B17: --> | C17: =C16-0.635 -> 86.365 | E17: 86 | F17: --> | G17: 86 | I17: Kranzresultat
A18: 135 | B18: --> | C18: =C17-0.635 -> 85.73 | E18: 85 | F18: --> | G18: 85
A19: 134 | B19: --> | C19: 85.095 | E19: 84 | F19: --> | G19: 84
A20: 133 | B20: --> | C20: 84.46 | E20: 83 | F20: --> | G20: 83
A21: 132 | B21: --> | C21: 83.825 | E21: 82 | F21: --> | G21: 82
A22: 131 | B22: --> | C22: 83.19 | E22: 81 | F22: --> | G22: 81
A23: 130 | B23: --> | C23: 82.555 | E23: 80 | F23: --> | G23: 80
A24: 129 | B24: --> | C24: 81.92 | E24: 79 | F24: --> | G24: 79
A25: 128 | B25: --> | C25: 81.285 | E25: 78 | F25: --> | G25: 78
A26: 127 | B26: --> | C26: 80.65 | E26: 77 | F26: --> | G26: 77
A27: 126 | B27: --> | C27: 80.015 | E27: 76 | F27: --> | G27: 76
A28: 125 | B28: --> | C28: 79.38 | E28: 75 | F28: --> | G28: 75
A29: 124 | B29: --> | C29: 78.745 | E29: 74 | F29: --> | G29: 74
A30: 123 | B30: --> | C30: 78.11 | E30: 73 | F30: --> | G30: 73
A31: 122 | B31: --> | C31: 77.475 | E31: 72 | F31: --> | G31: 72
A32: 121 | B32: --> | C32: 76.84 | E32: 71 | F32: --> | G32: 71
A33: 120 | B33: --> | C33: 76.205 | E33: 70 | F33: --> | G33: 70
A34: 119 | B34: --> | C34: 75.57 | E34: 69 | F34: --> | G34: 69
A35: 118 | B35: --> | C35: 74.935 | E35: 68 | F35: --> | G35: 68
A36: 117 | B36: --> | C36: 74.3 | E36: 67 | F36: --> | G36: 67
A37: 116 | B37: --> | C37: 73.665 | E37: 66 | F37: --> | G37: 66
A38: 115 | B38: --> | C38: 73.03 | E38: 65 | F38: --> | G38: 65
A39: 114 | B39: --> | C39: 72.395 | E39: 64 | F39: --> | G39: 64
A40: 113 | B40: --> | C40: 71.76 | E40: 63 | F40: --> | G40: 63
A41: 112 | B41: --> | C41: 71.125 | E41: 62 | F41: --> | G41: 62
A42: 111 | B42: --> | C42: 70.49 | E42: 61 | F42: --> | G42: 61
A43: 110 | B43: --> | C43: 69.855 | E43: 60 | F43: --> | G43: 60
A44: 109 | B44: --> | C44: 69.22 | E44: 59 | F44: --> | G44: 59
A45: 108 | B45: --> | C45: 68.585 | E45: 58 | F45: --> | G45: 58
A46: 107 | B46: --> | C46: 67.95 | E46: 57 | F46: --> | G46: 57
A47: 106 | B47: --> | C47: 67.315 | E47: 56 | F47: --> | G47: 56
A48: 105 | B48: --> | C48: 66.68 | E48: 55 | F48: --> | G48: 55
A49: 104 | B49: --> | C49: 66.045 | E49: 54 | F49: --> | G49: 54
A50: 103 | B50: --> | C50: 65.41 | E50: 53 | F50: --> | G50: 53
A51: 102 | B51: --> | C51: 64.775 | E51: 52 | F51: --> | G51: 52
A52: 101 | B52: --> | C52: 64.14 | E52: 51 | F52: --> | G52: 51
A53: 100 | B53: --> | C53: 63.505 | E53: 50 | F53: --> | G53: 50
A54: 99 | B54: --> | C54: 62.87 | E54: 49 | F54: --> | G54: 49
A55: 98 | B55: --> | C55: 62.235 | E55: 48 | F55: --> | G55: 48
A56: 97 | B56: --> | C56: 61.6 | E56: 47 | F56: --> | G56: 47
A57: 96 | B57: --> | C57: 60.965 | E57: 46 | F57: --> | G57: 46
A58: 95 | B58: --> | C58: 60.33 | E58: 45 | F58: --> | G58: 45
A59: 94 | B59: --> | C59: 59.695 | E59: 44 | F59: --> | G59: 44
A60: 93 | B60: --> | C60: 59.06 | E60: 43 | F60: --> | G60: 43
A61: 92 | B61: --> | C61: 58.425 | E61: 42 | F61: --> | G61: 42
A62: 91 | B62: --> | C62: 57.79 | E62: 41 | F62: --> | G62: 41
A63: 90 | B63: --> | C63: 57.155 | E63: 40 | F63: --> | G63: 40
A64: 89 | B64: --> | C64: 56.52 | E64: 39 | F64: --> | G64: 39
A65: 88 | B65: --> | C65: 55.885 | E65: 38 | F65: --> | G65: 38
A66: 87 | B66: --> | C66: 55.25 | E66: 37 | F66: --> | G66: 37
A67: 86 | B67: --> | C67: 54.615 | E67: 36 | F67: --> | G67: 36
A68: 85 | B68: --> | C68: 53.98 | E68: 35 | F68: --> | G68: 35
A69: 84 | B69: --> | C69: 53.345 | E69: 34 | F69: --> | G69: 34
A70: 83 | B70: --> | C70: 52.71 | E70: 33 | F70: --> | G70: 33
A71: 82 | B71: --> | C71: 52.075 | E71: 32 | F71: --> | G71: 32
A72: 81 | B72: --> | C72: 51.44 | E72: 31 | F72: --> | G72: 31
A73: 80 | B73: --> | C73: 50.805 | E73: 30 | F73: --> | G73: 30
A74: 79 | B74: --> | C74: 50.17 | E74: 29 | F74: --> | G74: 29
A75: 78 | B75: --> | C75: 49.535 | E75: 28 | F75: --> | G75: 28
A76: 77 | B76: --> | C76: 48.9 | E76: 27 | F76: --> | G76: 27
A77: 76 | B77: --> | C77: 48.265 | E77: 26 | F77: --> | G77: 26
A78: 75 | B78: --> | C78: 47.63 | E78: 25 | F78: --> | G78: 25
A79: 74 | B79: --> | C79: 46.995 | E79: 24 | F79: --> | G79: 24
A80: 73 | B80: --> | C80: 46.36 | E80: 23 | F80: --> | G80: 23
A81: 72 | B81: --> | C81: 45.725 | E81: 22 | F81: --> | G81: 22
A82: 71 | B82: --> | C82: =C81-0.635 -> 45.09 | E82: 21 | F82: --> | G82: 21
A83: 70 | B83: --> | C83: 44.455 | E83: 20 | F83: --> | G83: 20
A84: 69 | B84: --> | C84: 43.82 | E84: 19 | F84: --> | G84: 19
A85: 68 | B85: --> | C85: 43.185 | E85: 18 | F85: --> | G85: 18
A86: 67 | B86: --> | C86: 42.55 | E86: 17 | F86: --> | G86: 17
A87: 66 | B87: --> | C87: 41.915 | E87: 16 | F87: --> | G87: 16
A88: 65 | B88: --> | C88: 41.28 | E88: 15 | F88: --> | G88: 15
A89: 64 | B89: --> | C89: 40.645 | E89: 14 | F89: --> | G89: 14
A90: 63 | B90: --> | C90: 40.01 | E90: 13 | F90: --> | G90: 13
A91: 62 | B91: --> | C91: 39.375 | E91: 12 | F91: --> | G91: 12
A92: 61 | B92: --> | C92: 38.74 | E92: 11 | F92: --> | G92: 11
A93: 60 | B93: --> | C93: 38.105 | E93: 10 | F93: --> | G93: 10
A94: 59 | B94: --> | C94: 37.47 | E94: 9 | F94: --> | G94: 9
A95: 58 | B95: --> | C95: 36.835 | E95: 8 | F95: --> | G95: 8
A96: 57 | B96: --> | C96: 36.2 | E96: 7 | F96: --> | G96: 7
A97: 56 | B97: --> | C97: 35.565 | E97: 6 | F97: --> | G97: 6
A98: 55 | B98: --> | C98: 34.93 | E98: 5 | F98: --> | G98: 5
A99: 54 | B99: --> | C99: 34.295 | E99: 4 | F99: --> | G99: 4
A100: 53 | B100: --> | C100: 33.66 | E100: 3 | F100: --> | G100: 3
A101: 52 | B101: --> | C101: 33.025 | E101: 2 | F101: --> | G101: 2
A102: 51 | B102: --> | C102: 32.39 | E102: 1 | F102: --> | G102: 1
A103: 50 | B103: --> | C103: 31.755
A104: 49 | B104: --> | C104: 31.12
A105: 48 | B105: --> | C105: 30.485
A106: 47 | B106: --> | C106: 29.85
A107: 46 | B107: --> | C107: 29.215
A108: 45 | B108: --> | C108: 28.58
A109: 44 | B109: --> | C109: 27.945
A110: 43 | B110: --> | C110: 27.31
A111: 42 | B111: --> | C111: 26.675
A112: 41 | B112: --> | C112: 26.04
A113: 40 | B113: --> | C113: 25.405
A114: 39 | B114: --> | C114: 24.77
A115: 38 | B115: --> | C115: 24.135
A116: 37 | B116: --> | C116: 23.5
A117: 36 | B117: --> | C117: 22.865
A118: 35 | B118: --> | C118: 22.23
A119: 34 | B119: --> | C119: 21.595
A120: 33 | B120: --> | C120: 20.96
A121: 32 | B121: --> | C121: 20.325
A122: 31 | B122: --> | C122: 19.69
A123: 30 | B123: --> | C123: 19.055
A124: 29 | B124: --> | C124: 18.42
A125: 28 | B125: --> | C125: 17.785
A126: 27 | B126: --> | C126: 17.15
A127: 26 | B127: --> | C127: 16.515
A128: 25 | B128: --> | C128: 15.88
A129: 24 | B129: --> | C129: 15.245
A130: 23 | B130: --> | C130: 14.61
A131: 22 | B131: --> | C131: 13.975
A132: 21 | B132: --> | C132: 13.34
A133: 20 | B133: --> | C133: 12.705
A134: 19 | B134: --> | C134: 12.07
A135: 18 | B135: --> | C135: 11.435
A136: 17 | B136: --> | C136: 10.8
A137: 16 | B137: --> | C137: 10.165
A138: 15 | B138: --> | C138: 9.53
A139: 14 | B139: --> | C139: 8.895
A140: 13 | B140: --> | C140: 8.26
A141: 12 | B141: --> | C141: 7.625
A142: 11 | B142: --> | C142: 6.99
A143: 10 | B143: --> | C143: 6.355
A144: 9 | B144: --> | C144: 5.72
A145: 8 | B145: --> | C145: 5.085
A146: 7 | B146: --> | C146: =C145-0.635 -> 4.45
A147: 6 | B147: --> | C147: 3.815
A148: 5 | B148: --> | C148: 3.18
A149: 4 | B149: --> | C149: 2.545
A150: 3 | B150: --> | C150: 1.91
A151: 2 | B151: --> | C151: 1.275
A152: 1 | B152: --> | C152: 0.64
A153: 0 | B153: --> | C153: 0.005

Sheet Umre 15 S 25m & 50m
A1: Umrechnungstabellen je 15 Schuss 25 - 50m
A2: Punkte bei 15 Schuss auf 25m | B2: --> | C2: % | E2: Punkte bei 15 Schuss auf 50m | F2: --> | G2: %
A3: 150 | B3: --> | C3: 100 | E3: 150 | F3: --> | G3: =G4+0.666666667 -> 100
A4: 149 | B4: --> | C4: =C3-0.66666666667 -> 99.33333333 | E4: 149 | F4: --> | G4: 99.33333334
A5: 148 | B5: --> | C5: 98 | E5: 148 | F5: --> | G5: 98.66666667
A6: 147 | B6: --> | C6: 97 | E6: 147 | F6: --> | G6: 98.00000001
A7: 146 | B7: --> | C7: 96 | E7: 146 | F7: --> | G7: 97.33333334
A8: 145 | B8: --> | C8: 95 | E8: 145 | F8: --> | G8: 96.66666667
A9: 144 | B9: --> | C9: 94 | E9: 144 | F9: --> | G9: 96
A10: 143 | B10: --> | C10: 93 | E10: 143 | F10: --> | G10: 95.33333334
A11: 142 | B11: --> | C11: 92 | E11: 142 | F11: --> | G11: 94.66666667
A12: 141 | B12: --> | C12: 91 | E12: 141 | F12: --> | G12: 94
A13: 140 | B13: --> | C13: 90 | E13: 140 | F13: --> | G13: 93.33333334
A14: 139 | B14: --> | C14: 89 | E14: 139 | F14: --> | G14: 92.66666667
A15: 138 | B15: --> | C15: 88 | E15: 138 | F15: --> | G15: 92
A16: 137 | B16: --> | C16: 87 | E16: 137 | F16: --> | G16: 91.33333334
A17: 136 | B17: --> | C17: =C16-0.635 -> 86.365 | E17: 136 | F17: --> | G17: 90.66666667
A18: 135 | B18: --> | C18: =C17-0.635 -> 85.73 | E18: 135 | F18: --> | G18: 90
A19: 134 | B19: --> | C19: 85.095 | E19: 134 | F19: --> | G19: 89.33333333
A20: 133 | B20: --> | C20: 84.46 | E20: 133 | F20: --> | G20: =G21+0.666666667 -> 88.66666667
A21: 132 | B21: --> | C21: 83.825 | E21: 132 | F21: --> | G21: 88 | I21: Kranzresultat
A22: 131 | B22: --> | C22: 83.19 | E22: 131 | F22: --> | G22: =G21-0.6667 -> 87.3333
A23: 130 | B23: --> | C23: 82.555 | E23: 130 | F23: --> | G23: =G22-0.6667 -> 86.6666
A24: 129 | B24: --> | C24: 81.92 | E24: 129 | F24: --> | G24: 85.9999
A25: 128 | B25: --> | C25: 81.285 | E25: 128 | F25: --> | G25: 85.3332
A26: 127 | B26: --> | C26: 80.65 | E26: 127 | F26: --> | G26: 84.6665
A27: 126 | B27: --> | C27: 80.015 | E27: 126 | F27: --> | G27: 83.9998
A28: 125 | B28: --> | C28: 79.38 | E28: 125 | F28: --> | G28: 83.3331
A29: 124 | B29: --> | C29: 78.745 | E29: 124 | F29: --> | G29: 82.6664
A30: 123 | B30: --> | C30: 78.11 | E30: 123 | F30: --> | G30: 81.9997
A31: 122 | B31: --> | C31: 77.475 | E31: 122 | F31: --> | G31: 81.333
A32: 121 | B32: --> | C32: 76.84 | E32: 121 | F32: --> | G32: 80.6663
A33: 120 | B33: --> | C33: 76.205 | E33: 120 | F33: --> | G33: 79.9996
A34: 119 | B34: --> | C34: 75.57 | E34: 119 | F34: --> | G34: 79.3329
A35: 118 | B35: --> | C35: 74.935 | E35: 118 | F35: --> | G35: 78.6662
A36: 117 | B36: --> | C36: 74.3 | E36: 117 | F36: --> | G36: 77.9995
A37: 116 | B37: --> | C37: 73.665 | E37: 116 | F37: --> | G37: 77.3328
A38: 115 | B38: --> | C38: 73.03 | E38: 115 | F38: --> | G38: 76.6661
A39: 114 | B39: --> | C39: 72.395 | E39: 114 | F39: --> | G39: 75.9994
A40: 113 | B40: --> | C40: 71.76 | E40: 113 | F40: --> | G40: 75.3327
A41: 112 | B41: --> | C41: 71.125 | E41: 112 | F41: --> | G41: 74.666
A42: 111 | B42: --> | C42: 70.49 | E42: 111 | F42: --> | G42: 73.9993
A43: 110 | B43: --> | C43: 69.855 | E43: 110 | F43: --> | G43: 73.3326
A44: 109 | B44: --> | C44: 69.22 | E44: 109 | F44: --> | G44: 72.6659
A45: 108 | B45: --> | C45: 68.585 | E45: 108 | F45: --> | G45: 71.9992
A46: 107 | B46: --> | C46: 67.95 | E46: 107 | F46: --> | G46: 71.3325
A47: 106 | B47: --> | C47: 67.315 | E47: 106 | F47: --> | G47: 70.6658
A48: 105 | B48: --> | C48: 66.68 | E48: 105 | F48: --> | G48: 69.9991
A49: 104 | B49: --> | C49: 66.045 | E49: 104 | F49: --> | G49: 69.3324
A50: 103 | B50: --> | C50: 65.41 | E50: 103 | F50: --> | G50: 68.6657
A51: 102 | B51: --> | C51: 64.775 | E51: 102 | F51: --> | G51: 67.999
A52: 101 | B52: --> | C52: 64.14 | E52: 101 | F52: --> | G52: 67.3323
A53: 100 | B53: --> | C53: 63.505 | E53: 100 | F53: --> | G53: 66.6656
A54: 99 | B54: --> | C54: 62.87 | E54: 99 | F54: --> | G54: 65.9989
A55: 98 | B55: --> | C55: 62.235 | E55: 98 | F55: --> | G55: 65.3322
A56: 97 | B56: --> | C56: 61.6 | E56: 97 | F56: --> | G56: 64.6655
A57: 96 | B57: --> | C57: 60.965 | E57: 96 | F57: --> | G57: 63.9988
A58: 95 | B58: --> | C58: 60.33 | E58: 95 | F58: --> | G58: 63.3321
A59: 94 | B59: --> | C59: 59.695 | E59: 94 | F59: --> | G59: 62.6654
A60: 93 | B60: --> | C60: 59.06 | E60: 93 | F60: --> | G60: 61.9987
A61: 92 | B61: --> | C61: 58.425 | E61: 92 | F61: --> | G61: 61.332
A62: 91 | B62: --> | C62: 57.79 | E62: 91 | F62: --> | G62: 60.6653
A63: 90 | B63: --> | C63: 57.155 | E63: 90 | F63: --> | G63: 59.9986
A64: 89 | B64: --> | C64: 56.52 | E64: 89 | F64: --> | G64: 59.3319
A65: 88 | B65: --> | C65: 55.885 | E65: 88 | F65: --> | G65: 58.6652
A66: 87 | B66: --> | C66: 55.25 | E66: 87 | F66: --> | G66: 57.9985
A67: 86 | B67: --> | C67: 54.615 | E67: 86 | F67: --> | G67: 57.3318
A68: 85 | B68: --> | C68: 53.98 | E68: 85 | F68: --> | G68: 56.6651
A69: 84 | B69: --> | C69: 53.345 | E69: 84 | F69: --> | G69: 55.9984
A70: 83 | B70: --> | C70: 52.71 | E70: 83 | F70: --> | G70: 55.3317
A71: 82 | B71: --> | C71: 52.075 | E71: 82 | F71: --> | G71: 54.665
A72: 81 | B72: --> | C72: 51.44 | E72: 81 | F72: --> | G72: 53.9983
A73: 80 | B73: --> | C73: 50.805 | E73: 80 | F73: --> | G73: 53.3316
A74: 79 | B74: --> | C74: 50.17 | E74: 79 | F74: --> | G74: 52.6649
A75: 78 | B75: --> | C75: 49.535 | E75: 78 | F75: --> | G75: 51.9982
A76: 77 | B76: --> | C76: 48.9 | E76: 77 | F76: --> | G76: 51.3315
A77: 76 | B77: --> | C77: 48.265 | E77: 76 | F77: --> | G77: 50.6648
A78: 75 | B78: --> | C78: 47.63 | E78: 75 | F78: --> | G78: 49.9981
A79: 74 | B79: --> | C79: 46.995 | E79: 74 | F79: --> | G79: 49.3314
A80: 73 | B80: --> | C80: 46.36 | E80: 73 | F80: --> | G80: 48.6647
A81: 72 | B81: --> | C81: 45.725 | E81: 72 | F81: --> | G81: 47.998
A82: 71 | B82: --> | C82: =C81-0.635 -> 45.09 | E82: 71 | F82: --> | G82: 47.3313
A83: 70 | B83: --> | C83: 44.455 | E83: 70 | F83: --> | G83: 46.6646
A84: 69 | B84: --> | C84: 43.82 | E84: 69 | F84: --> | G84: 45.9979
A85: 68 | B85: --> | C85: 43.185 | E85: 68 | F85: --> | G85: 45.3312
A86: 67 | B86: --> | C86: 42.55 | E86: 67 | F86: --> | G86: 44.6645
A87: 66 | B87: --> | C87: 41.915 | E87: 66 | F87: --> | G87: =G86-0.6667 -> 43.9978
A88: 65 | B88: --> | C88: 41.28 | E88: 65 | F88: --> | G88: 43.3311
A89: 64 | B89: --> | C89: 40.645 | E89: 64 | F89: --> | G89: 42.6644
A90: 63 | B90: --> | C90: 40.01 | E90: 63 | F90: --> | G90: 41.9977
A91: 62 | B91: --> | C91: 39.375 | E91: 62 | F91: --> | G91: 41.331
A92: 61 | B92: --> | C92: 38.74 | E92: 61 | F92: --> | G92: 40.6643
A93: 60 | B93: --> | C93: 38.105 | E93: 60 | F93: --> | G93: 39.9976
A94: 59 | B94: --> | C94: 37.47 | E94: 59 | F94: --> | G94: 39.3309
A95: 58 | B95: --> | C95: 36.835 | E95: 58 | F95: --> | G95: 38.6642
A96: 57 | B96: --> | C96: 36.2 | E96: 57 | F96: --> | G96: 37.9975
A97: 56 | B97: --> | C97: 35.565 | E97: 56 | F97: --> | G97: 37.3308
A98: 55 | B98: --> | C98: 34.93 | E98: 55 | F98: --> | G98: 36.6641
A99: 54 | B99: --> | C99: 34.295 | E99: 54 | F99: --> | G99: 35.9974
A100: 53 | B100: --> | C100: 33.66 | E100: 53 | F100: --> | G100: 35.3307
A101: 52 | B101: --> | C101: 33.025 | E101: 52 | F101: --> | G101: 34.664
A102: 51 | B102: --> | C102: 32.39 | E102: 51 | F102: --> | G102: 33.9973
A103: 50 | B103: --> | C103: 31.755 | E103: 50 | F103: --> | G103: 33.3306
A104: 49 | B104: --> | C104: 31.12 | E104: 49 | F104: --> | G104: 32.6639
A105: 48 | B105: --> | C105: 30.485 | E105: 48 | F105: --> | G105: 31.9972
A106: 47 | B106: --> | C106: 29.85 | E106: 47 | F106: --> | G106: 31.3305
A107: 46 | B107: --> | C107: 29.215 | E107: 46 | F107: --> | G107: 30.6638
A108: 45 | B108: --> | C108: 28.58 | E108: 45 | F108: --> | G108: 29.9971
A109: 44 | B109: --> | C109: 27.945 | E109: 44 | F109: --> | G109: 29.3304
A110: 43 | B110: --> | C110: 27.31 | E110: 43 | F110: --> | G110: 28.6637
A111: 42 | B111: --> | C111: 26.675 | E111: 42 | F111: --> | G111: 27.997
A112: 41 | B112: --> | C112: 26.04 | E112: 41 | F112: --> | G112: 27.3303
A113: 40 | B113: --> | C113: 25.405 | E113: 40 | F113: --> | G113: 26.6636
A114: 39 | B114: --> | C114: 24.77 | E114: 39 | F114: --> | G114: 25.9969
A115: 38 | B115: --> | C115: 24.135 | E115: 38 | F115: --> | G115: 25.3302
A116: 37 | B116: --> | C116: 23.5 | E116: 37 | F116: --> | G116: 24.6635
A117: 36 | B117: --> | C117: 22.865 | E117: 36 | F117: --> | G117: 23.9968
A118: 35 | B118: --> | C118: 22.23 | E118: 35 | F118: --> | G118: 23.3301
A119: 34 | B119: --> | C119: 21.595 | E119: 34 | F119: --> | G119: 22.6634
A120: 33 | B120: --> | C120: 20.96 | E120: 33 | F120: --> | G120: 21.9967
A121: 32 | B121: --> | C121: 20.325 | E121: 32 | F121: --> | G121: 21.33
A122: 31 | B122: --> | C122: 19.69 | E122: 31 | F122: --> | G122: 20.6633
A123: 30 | B123: --> | C123: 19.055 | E123: 30 | F123: --> | G123: 19.9966
A124: 29 | B124: --> | C124: 18.42 | E124: 29 | F124: --> | G124: 19.3299
A125: 28 | B125: --> | C125: 17.785 | E125: 28 | F125: --> | G125: 18.6632
A126: 27 | B126: --> | C126: 17.15 | E126: 27 | F126: --> | G126: 17.9965
A127: 26 | B127: --> | C127: 16.515 | E127: 26 | F127: --> | G127: 17.3298
A128: 25 | B128: --> | C128: 15.88 | E128: 25 | F128: --> | G128: 16.6631
A129: 24 | B129: --> | C129: 15.245 | E129: 24 | F129: --> | G129: 15.9964
A130: 23 | B130: --> | C130: 14.61 | E130: 23 | F130: --> | G130: 15.3297
A131: 22 | B131: --> | C131: 13.975 | E131: 22 | F131: --> | G131: 14.663
A132: 21 | B132: --> | C132: 13.34 | E132: 21 | F132: --> | G132: 13.9963
A133: 20 | B133: --> | C133: 12.705 | E133: 20 | F133: --> | G133: 13.3296
A134: 19 | B134: --> | C134: 12.07 | E134: 19 | F134: --> | G134: 12.6629
A135: 18 | B135: --> | C135: 11.435 | E135: 18 | F135: --> | G135: 11.9962
A136: 17 | B136: --> | C136: 10.8 | E136: 17 | F136: --> | G136: 11.3295
A137: 16 | B137: --> | C137: 10.165 | E137: 16 | F137: --> | G137: 10.6628
A138: 15 | B138: --> | C138: 9.53 | E138: 15 | F138: --> | G138: 9.9961
A139: 14 | B139: --> | C139: 8.895 | E139: 14 | F139: --> | G139: 9.3294
A140: 13 | B140: --> | C140: 8.26 | E140: 13 | F140: --> | G140: 8.6627
A141: 12 | B141: --> | C141: 7.625 | E141: 12 | F141: --> | G141: 7.996
A142: 11 | B142: --> | C142: 6.99 | E142: 11 | F142: --> | G142: 7.3293
A143: 10 | B143: --> | C143: 6.355 | E143: 10 | F143: --> | G143: 6.6626
A144: 9 | B144: --> | C144: 5.72 | E144: 9 | F144: --> | G144: 5.9959
A145: 8 | B145: --> | C145: 5.085 | E145: 8 | F145: --> | G145: 5.3292
A146: 7 | B146: --> | C146: =C145-0.635 -> 4.45 | E146: 7 | F146: --> | G146: 4.6625
A147: 6 | B147: --> | C147: 3.815 | E147: 6 | F147: --> | G147: 3.9958
A148: 5 | B148: --> | C148: 3.18 | E148: 5 | F148: --> | G148: 3.3291
A149: 4 | B149: --> | C149: 2.545 | E149: 4 | F149: --> | G149: 2.6624
A150: 3 | B150: --> | C150: 1.91 | E150: 3 | F150: --> | G150: 1.9957
A151: 2 | B151: --> | C151: 1.275 | E151: 2 | F151: --> | G151: =G150-0.6667 -> 1.329
A152: 1 | B152: --> | C152: 0.64 | E152: 1 | F152: --> | G152: =G151-0.6667 -> 0.6623
A153: 0 | B153: --> | C153: 0.005 | E153: 0 | F153: --> | G153: =G152-0.6667 -> -0.0044

Sheet Umre 20S 25m - 10S 50m
A1: Umrechnungstabellen 20 Schuss 25m - 10 Schuss 50m
A2: Punkte bei 20 Schuss auf 25m | B2: --> | C2: % | E2: Punkte bei 10 Schuss auf 50m | F2: --> | G2: %
A3: 200 | B3: --> | C3: =C4+12/20 -> 100 | E3: 100 | F3: --> | G3: 100
A4: 199 | B4: --> | C4: 99.4
A5: 198 | B5: --> | C5: 98.8 | E5: 99 | F5: --> | G5: 99
A6: 197 | B6: --> | C6: 98.2
A7: 196 | B7: --> | C7: 97.6 | E7: 98 | F7: --> | G7: 98
A8: 195 | B8: --> | C8: 97
A9: 194 | B9: --> | C9: 96.4 | E9: 97 | F9: --> | G9: 97
A10: 193 | B10: --> | C10: 95.8
A11: 192 | B11: --> | C11: 95.2 | E11: 96 | F11: --> | G11: 96
A12: 191 | B12: --> | C12: 94.6
A13: 190 | B13: --> | C13: 94 | E13: 95 | F13: --> | G13: 95
A14: 189 | B14: --> | C14: 93.4
A15: 188 | B15: --> | C15: 92.8 | E15: 94 | F15: --> | G15: 94
A16: 187 | B16: --> | C16: 92.2
A17: 186 | B17: --> | C17: 91.6 | E17: 93 | F17: --> | G17: 93
A18: 185 | B18: --> | C18: 91
A19: 184 | B19: --> | C19: 90.4 | E19: 92 | F19: --> | G19: 92
A20: 183 | B20: --> | C20: 89.8
A21: 182 | B21: --> | C21: 89.2 | E21: 91 | F21: --> | G21: 91
A22: 181 | B22: --> | C22: =C23+12/20 -> 88.6
A23: 180 | B23: --> | C23: 88 | E23: 90 | F23: --> | G23: 90
A24: 179 | B24: --> | C24: =C23-87/178 -> 87.51123596
A25: 178 | B25: --> | C25: =C24-87/178 -> 87.02247191 | E25: 89 | F25: --> | G25: 89
A26: 177 | B26: --> | C26: 86.53370787
A27: 176 | B27: --> | C27: 86.04494382 | E27: 88 | F27: --> | G27: 88
A28: 175 | B28: --> | C28: 85.55617978
A29: 174 | B29: --> | C29: 85.06741573 | E29: 87 | F29: --> | G29: 87
A30: 173 | B30: --> | C30: 84.57865169
A31: 172 | B31: --> | C31: 84.08988764 | E31: 86 | F31: --> | G31: 86
A32: 171 | B32: --> | C32: 83.6011236
A33: 170 | B33: --> | C33: 83.11235955 | E33: 85 | F33: --> | G33: 85
A34: 169 | B34: --> | C34: 82.62359551
A35: 168 | B35: --> | C35: 82.13483146 | E35: 84 | F35: --> | G35: 84
A36: 167 | B36: --> | C36: 81.64606742
A37: 166 | B37: --> | C37: 81.15730337 | E37: 83 | F37: --> | G37: 83
A38: 165 | B38: --> | C38: 80.66853933
A39: 164 | B39: --> | C39: 80.17977528 | E39: 82 | F39: --> | G39: 82
A40: 163 | B40: --> | C40: 79.69101124
A41: 162 | B41: --> | C41: 79.20224719 | E41: 81 | F41: --> | G41: 81
A42: 161 | B42: --> | C42: 78.71348315
A43: 160 | B43: --> | C43: 78.2247191 | E43: 80 | F43: --> | G43: 80
A44: 159 | B44: --> | C44: 77.73595506
A45: 158 | B45: --> | C45: 77.24719101 | E45: 79 | F45: --> | G45: 79
A46: 157 | B46: --> | C46: 76.75842697
A47: 156 | B47: --> | C47: 76.26966292 | E47: 78 | F47: --> | G47: 78
A48: 155 | B48: --> | C48: 75.78089888
A49: 154 | B49: --> | C49: 75.29213483 | E49: 77 | F49: --> | G49: 77
A50: 153 | B50: --> | C50: 74.80337079
A51: 152 | B51: --> | C51: 74.31460674 | E51: 76 | F51: --> | G51: 76
A52: 151 | B52: --> | C52: 73.8258427
A53: 150 | B53: --> | C53: 73.33707865 | E53: 75 | F53: --> | G53: 75
A54: 149 | B54: --> | C54: 72.84831461
A55: 148 | B55: --> | C55: 72.35955056 | E55: 74 | F55: --> | G55: 74
A56: 147 | B56: --> | C56: 71.87078652
A57: 146 | B57: --> | C57: 71.38202247 | E57: 73 | F57: --> | G57: 73
A58: 145 | B58: --> | C58: 70.89325843
A59: 144 | B59: --> | C59: 70.40449438 | E59: 72 | F59: --> | G59: 72
A60: 143 | B60: --> | C60: 69.91573034
A61: 142 | B61: --> | C61: 69.42696629 | E61: 71 | F61: --> | G61: 71
A62: 141 | B62: --> | C62: 68.93820225
A63: 140 | B63: --> | C63: 68.4494382 | E63: 70 | F63: --> | G63: 70
A64: 139 | B64: --> | C64: 67.96067416
A65: 138 | B65: --> | C65: 67.47191011 | E65: 69 | F65: --> | G65: 69
A66: 137 | B66: --> | C66: 66.98314607
A67: 136 | B67: --> | C67: 66.49438202 | E67: 68 | F67: --> | G67: 68
A68: 135 | B68: --> | C68: 66.00561798
A69: 134 | B69: --> | C69: 65.51685393 | E69: 67 | F69: --> | G69: 67
A70: 133 | B70: --> | C70: 65.02808989
A71: 132 | B71: --> | C71: 64.53932584 | E71: 66 | F71: --> | G71: 66
A72: 131 | B72: --> | C72: 64.0505618
A73: 130 | B73: --> | C73: 63.56179775 | E73: 65 | F73: --> | G73: 65
A74: 129 | B74: --> | C74: 63.07303371
A75: 128 | B75: --> | C75: 62.58426966 | E75: 64 | F75: --> | G75: 64
A76: 127 | B76: --> | C76: 62.09550562
A77: 126 | B77: --> | C77: 61.60674157 | E77: 63 | F77: --> | G77: 63
A78: 125 | B78: --> | C78: 61.11797753
A79: 124 | B79: --> | C79: 60.62921348 | E79: 62 | F79: --> | G79: 62
A80: 123 | B80: --> | C80: 60.14044944
A81: 122 | B81: --> | C81: 59.65168539 | E81: 61 | F81: --> | G81: 61
A82: 121 | B82: --> | C82: 59.16292135
A83: 120 | B83: --> | C83: 58.6741573 | E83: 60 | F83: --> | G83: 60
A84: 119 | B84: --> | C84: 58.18539326
A85: 118 | B85: --> | C85: 57.69662921 | E85: 59 | F85: --> | G85: 59
A86: 117 | B86: --> | C86: 57.20786517
A87: 116 | B87: --> | C87: 56.71910112 | E87: 58 | F87: --> | G87: 58
A88: 115 | B88: --> | C88: 56.23033708
A89: 114 | B89: --> | C89: =C88-87/178 -> 55.74157303 | E89: 57 | F89: --> | G89: 57
A90: 113 | B90: --> | C90: 55.25280899
A91: 112 | B91: --> | C91: 54.76404494 | E91: 56 | F91: --> | G91: 56
A92: 111 | B92: --> | C92: 54.2752809
A93: 110 | B93: --> | C93: 53.78651685 | E93: 55 | F93: --> | G93: 55
A94: 109 | B94: --> | C94: 53.29775281
A95: 108 | B95: --> | C95: 52.80898876 | E95: 54 | F95: --> | G95: 54
A96: 107 | B96: --> | C96: 52.32022472
A97: 106 | B97: --> | C97: 51.83146067 | E97: 53 | F97: --> | G97: 53
A98: 105 | B98: --> | C98: 51.34269663
A99: 104 | B99: --> | C99: 50.85393258 | E99: 52 | F99: --> | G99: 52
A100: 103 | B100: --> | C100: 50.36516854
A101: 102 | B101: --> | C101: 49.87640449 | E101: 51 | F101: --> | G101: 51
A102: 101 | B102: --> | C102: 49.38764045
A103: 100 | B103: --> | C103: 48.8988764 | E103: 50 | F103: --> | G103: 50
A104: 99 | B104: --> | C104: 48.41011236
A105: 98 | B105: --> | C105: 47.92134831 | E105: 49 | F105: --> | G105: 49
A106: 97 | B106: --> | C106: 47.43258427
A107: 96 | B107: --> | C107: 46.94382022 | E107: 48 | F107: --> | G107: 48
A108: 95 | B108: --> | C108: 46.45505618
A109: 94 | B109: --> | C109: 45.96629213 | E109: 47 | F109: --> | G109: 47
A110: 93 | B110: --> | C110: 45.47752809
A111: 92 | B111: --> | C111: 44.98876404 | E111: 46 | F111: --> | G111: 46
A112: 91 | B112: --> | C112: 44.5
A113: 90 | B113: --> | C113: 44.01123596 | E113: 45 | F113: --> | G113: 45
A114: 89 | B114: --> | C114: 43.52247191
A115: 88 | B115: --> | C115: 43.03370787 | E115: 44 | F115: --> | G115: 44
A116: 87 | B116: --> | C116: 42.54494382
A117: 86 | B117: --> | C117: 42.05617978 | E117: 43 | F117: --> | G117: 43
A118: 85 | B118: --> | C118: 41.56741573
A119: 84 | B119: --> | C119: 41.07865169 | E119: 42 | F119: --> | G119: 42
A120: 83 | B120: --> | C120: 40.58988764
A121: 82 | B121: --> | C121: 40.1011236 | E121: 41 | F121: --> | G121: 41
A122: 81 | B122: --> | C122: 39.61235955
A123: 80 | B123: --> | C123: 39.12359551 | E123: 40 | F123: --> | G123: 40
A124: 79 | B124: --> | C124: 38.63483146
A125: 78 | B125: --> | C125: 38.14606742 | E125: 39 | F125: --> | G125: 39
A126: 77 | B126: --> | C126: 37.65730337
A127: 76 | B127: --> | C127: 37.16853933 | E127: 38 | F127: --> | G127: 38
A128: 75 | B128: --> | C128: 36.67977528
A129: 74 | B129: --> | C129: 36.19101124 | E129: 37 | F129: --> | G129: 37
A130: 73 | B130: --> | C130: 35.70224719
A131: 72 | B131: --> | C131: 35.21348315 | E131: 36 | F131: --> | G131: 36
A132: 71 | B132: --> | C132: 34.7247191
A133: 70 | B133: --> | C133: 34.23595506 | E133: 35 | F133: --> | G133: 35
A134: 69 | B134: --> | C134: 33.74719101
A135: 68 | B135: --> | C135: 33.25842697 | E135: 34 | F135: --> | G135: 34
A136: 67 | B136: --> | C136: 32.76966292
A137: 66 | B137: --> | C137: 32.28089888 | E137: 33 | F137: --> | G137: 33
A138: 65 | B138: --> | C138: 31.79213483
A139: 64 | B139: --> | C139: 31.30337079 | E139: 32 | F139: --> | G139: 32
A140: 63 | B140: --> | C140: 30.81460674
A141: 62 | B141: --> | C141: 30.3258427 | E141: 31 | F141: --> | G141: 31
A142: 61 | B142: --> | C142: 29.83707865
A143: 60 | B143: --> | C143: 29.34831461 | E143: 30 | F143: --> | G143: 30
A144: 59 | B144: --> | C144: 28.85955056
A145: 58 | B145: --> | C145: 28.37078652 | E145: 29 | F145: --> | G145: 29
A146: 57 | B146: --> | C146: 27.88202247
A147: 56 | B147: --> | C147: 27.39325843 | E147: 28 | F147: --> | G147: 28
A148: 55 | B148: --> | C148: 26.90449438
A149: 54 | B149: --> | C149: 26.41573034 | E149: 27 | F149: --> | G149: 27
A150: 53 | B150: --> | C150: 25.92696629
A151: 52 | B151: --> | C151: 25.43820225 | E151: 26 | F151: --> | G151: 26
A152: 51 | B152: --> | C152: 24.9494382
A153: 50 | B153: --> | C153: =C152-87/178 -> 24.46067416 | E153: 25 | F153: --> | G153: 25
A154: 49 | B154: --> | C154: 23.97191011
A155: 48 | B155: --> | C155: 23.48314607 | E155: 24 | F155: --> | G155: 24
A156: 47 | B156: --> | C156: 22.99438202
A157: 46 | B157: --> | C157: 22.50561798 | E157: 23 | F157: --> | G157: 23
A158: 45 | B158: --> | C158: 22.01685393
A159: 44 | B159: --> | C159: 21.52808989 | E159: 22 | F159: --> | G159: 22
A160: 43 | B160: --> | C160: 21.03932584
A161: 42 | B161: --> | C161: 20.5505618 | E161: 21 | F161: --> | G161: 21
A162: 41 | B162: --> | C162: 20.06179775
A163: 40 | B163: --> | C163: 19.57303371 | E163: 20 | F163: --> | G163: 20
A164: 39 | B164: --> | C164: 19.08426966
A165: 38 | B165: --> | C165: 18.59550562 | E165: 19 | F165: --> | G165: 19
A166: 37 | B166: --> | C166: 18.10674157
A167: 36 | B167: --> | C167: 17.61797753 | E167: 18 | F167: --> | G167: 18
A168: 35 | B168: --> | C168: 17.12921348
A169: 34 | B169: --> | C169: 16.64044944 | E169: 17 | F169: --> | G169: 17
A170: 33 | B170: --> | C170: 16.15168539
A171: 32 | B171: --> | C171: 15.66292135 | E171: 16 | F171: --> | G171: 16
A172: 31 | B172: --> | C172: 15.1741573
A173: 30 | B173: --> | C173: 14.68539326 | E173: 15 | F173: --> | G173: 15
A174: 29 | B174: --> | C174: 14.19662921
A175: 28 | B175: --> | C175: 13.70786517 | E175: 14 | F175: --> | G175: 14
A176: 27 | B176: --> | C176: 13.21910112
A177: 26 | B177: --> | C177: 12.73033708 | E177: 13 | F177: --> | G177: 13
A178: 25 | B178: --> | C178: 12.24157303
A179: 24 | B179: --> | C179: 11.75280899 | E179: 12 | F179: --> | G179: 12
A180: 23 | B180: --> | C180: 11.26404494
A181: 22 | B181: --> | C181: 10.7752809 | E181: 11 | F181: --> | G181: 11
A182: 21 | B182: --> | C182: 10.28651685
A183: 20 | B183: --> | C183: 9.797752809 | E183: 10 | F183: --> | G183: 10
A184: 19 | B184: --> | C184: 9.308988764
A185: 18 | B185: --> | C185: 8.820224719 | E185: 9 | F185: --> | G185: 9
A186: 17 | B186: --> | C186: 8.331460674
A187: 16 | B187: --> | C187: 7.842696629 | E187: 8 | F187: --> | G187: 8
A188: 15 | B188: --> | C188: 7.353932584
A189: 14 | B189: --> | C189: 6.865168539 | E189: 7 | F189: --> | G189: 7
A190: 13 | B190: --> | C190: 6.376404494
A191: 12 | B191: --> | C191: 5.887640449 | E191: 6 | F191: --> | G191: 6
A192: 11 | B192: --> | C192: 5.398876404
A193: 10 | B193: --> | C193: 4.91011236 | E193: 5 | F193: --> | G193: 5
A194: 9 | B194: --> | C194: 4.421348315
A195: 8 | B195: --> | C195: 3.93258427 | E195: 4 | F195: --> | G195: 4
A196: 7 | B196: --> | C196: 3.443820225
A197: 6 | B197: --> | C197: 2.95505618 | E197: 3 | F197: --> | G197: 3
A198: 5 | B198: --> | C198: 2.466292135
A199: 4 | B199: --> | C199: 1.97752809 | E199: 2 | F199: --> | G199: 2
A200: 3 | B200: --> | C200: 1.488764045
... 3 more rows

Sheet Umre 50m Morgarten - 10S 50m
A1: Umrechnungstabellen Morgartenscheibe 50 Meter in %
A2: Punkte bei 10 Schuss Morgartenscheibe auf 50m | B2: --> | C2: % | E2: Punkte bei 10 Schuss P10 auf 50m | F2: --> | G2: %
A3: 50 | B3: --> | C3: =C4+1.5 -> 100 | E3: 100 | F3: --> | G3: 100
A4: 49 | B4: --> | C4: 98.5 | E4: 99 | F4: --> | G4: 99
A5: 48 | B5: --> | C5: 97 | E5: 98 | F5: --> | G5: 98
A6: 47 | B6: --> | C6: 95.5 | E6: 97 | F6: --> | G6: 97
A7: 46 | B7: --> | C7: 94 | E7: 96 | F7: --> | G7: 96
A8: 45 | B8: --> | C8: 92.5 | E8: 95 | F8: --> | G8: 95
A9: 44 | B9: --> | C9: 91 | E9: 94 | F9: --> | G9: 94
A10: 43 | B10: --> | C10: 89.5 | E10: 93 | F10: --> | G10: 93
A11: 42 | B11: --> | C11: 88 | D11: Kranzlimite P 10 | E11: 92 | F11: --> | G11: 92
A12: 41 | B12: --> | C12: 86.5 | E12: 91 | F12: --> | G12: 91
A13: 40 | B13: --> | C13: 85 | E13: 90 | F13: --> | G13: 90
A14: 39 | B14: --> | C14: =C13-2.125 -> 82.875 | E14: 89 | F14: --> | G14: 89
A15: 38 | B15: --> | C15: =C14-2.125 -> 80.75 | E15: 88 | F15: --> | G15: 88
A16: 37 | B16: --> | C16: 78.625 | E16: 87 | F16: --> | G16: 87
A17: 36 | B17: --> | C17: 76.5 | E17: 86 | F17: --> | G17: 86
A18: 35 | B18: --> | C18: 74.375 | E18: 85 | F18: --> | G18: 85
A19: 34 | B19: --> | C19: 72.25 | E19: 84 | F19: --> | G19: 84
A20: 33 | B20: --> | C20: 70.125 | E20: 83 | F20: --> | G20: 83
A21: 32 | B21: --> | C21: 68 | E21: 82 | F21: --> | G21: 82
A22: 31 | B22: --> | C22: 65.875 | E22: 81 | F22: --> | G22: 81
A23: 30 | B23: --> | C23: 63.75 | E23: 80 | F23: --> | G23: 80
A24: 29 | B24: --> | C24: 61.625 | E24: 79 | F24: --> | G24: 79
A25: 28 | B25: --> | C25: 59.5 | E25: 78 | F25: --> | G25: 78
A26: 27 | B26: --> | C26: 57.375 | E26: 77 | F26: --> | G26: 77
A27: 26 | B27: --> | C27: 55.25 | E27: 76 | F27: --> | G27: 76
A28: 25 | B28: --> | C28: 53.125 | E28: 75 | F28: --> | G28: 75
A29: 24 | B29: --> | C29: 51 | E29: 74 | F29: --> | G29: 74
A30: 23 | B30: --> | C30: 48.875 | E30: 73 | F30: --> | G30: 73
A31: 22 | B31: --> | C31: 46.75 | E31: 72 | F31: --> | G31: 72
A32: 21 | B32: --> | C32: 44.625 | E32: 71 | F32: --> | G32: 71
A33: 20 | B33: --> | C33: 42.5 | E33: 70 | F33: --> | G33: 70
A34: 19 | B34: --> | C34: 40.375 | E34: 69 | F34: --> | G34: 69
A35: 18 | B35: --> | C35: 38.25 | E35: 68 | F35: --> | G35: 68
A36: 17 | B36: --> | C36: 36.125 | E36: 67 | F36: --> | G36: 67
A37: 16 | B37: --> | C37: 34 | E37: 66 | F37: --> | G37: 66
A38: 15 | B38: --> | C38: 31.875 | E38: 65 | F38: --> | G38: 65
A39: 14 | B39: --> | C39: 29.75 | E39: 64 | F39: --> | G39: 64
A40: 13 | B40: --> | C40: 27.625 | E40: 63 | F40: --> | G40: 63
A41: 12 | B41: --> | C41: 25.5 | E41: 62 | F41: --> | G41: 62
A42: 11 | B42: --> | C42: 23.375 | E42: 61 | F42: --> | G42: 61
A43: 10 | B43: --> | C43: 21.25 | E43: 60 | F43: --> | G43: 60
A44: 9 | B44: --> | C44: 19.125 | E44: 59 | F44: --> | G44: 59
A45: 8 | B45: --> | C45: 17 | E45: 58 | F45: --> | G45: 58
A46: 7 | B46: --> | C46: 14.875 | E46: 57 | F46: --> | G46: 57
A47: 6 | B47: --> | C47: 12.75 | E47: 56 | F47: --> | G47: 56
A48: 5 | B48: --> | C48: 10.625 | E48: 55 | F48: --> | G48: 55
A49: 4 | B49: --> | C49: 8.5 | E49: 54 | F49: --> | G49: 54
A50: 3 | B50: --> | C50: 6.375 | E50: 53 | F50: --> | G50: 53
A51: 2 | B51: --> | C51: 4.25 | E51: 52 | F51: --> | G51: 52
A52: 1 | B52: --> | C52: 2.125 | E52: 51 | F52: --> | G52: 51
A53: 0 | B53: --> | C53: 0 | E53: 50 | F53: --> | G53: 50
E54: 49 | F54: --> | G54: 49
E55: 48 | F55: --> | G55: 48
E56: 47 | F56: --> | G56: 47
E57: 46 | F57: --> | G57: 46
E58: 45 | F58: --> | G58: 45
E59: 44 | F59: --> | G59: 44
E60: 43 | F60: --> | G60: 43
E61: 42 | F61: --> | G61: 42
E62: 41 | F62: --> | G62: 41
E63: 40 | F63: --> | G63: 40
E64: 39 | F64: --> | G64: 39
E65: 38 | F65: --> | G65: 38
E66: 37 | F66: --> | G66: 37
E67: 36 | F67: --> | G67: 36
E68: 35 | F68: --> | G68: 35
E69: 34 | F69: --> | G69: 34
E70: 33 | F70: --> | G70: 33
E71: 32 | F71: --> | G71: 32
E72: 31 | F72: --> | G72: 31
E73: 30 | F73: --> | G73: 30
E74: 29 | F74: --> | G74: 29
E75: 28 | F75: --> | G75: 28
E76: 27 | F76: --> | G76: 27
E77: 26 | F77: --> | G77: 26
E78: 25 | F78: --> | G78: 25
E79: 24 | F79: --> | G79: 24
E80: 23 | F80: --> | G80: 23
E81: 22 | F81: --> | G81: 22
E82: 21 | F82: --> | G82: 21
E83: 20 | F83: --> | G83: 20
E84: 19 | F84: --> | G84: 19
E85: 18 | F85: --> | G85: 18
E86: 17 | F86: --> | G86: 17
E87: 16 | F87: --> | G87: 16
E88: 15 | F88: --> | G88: 15
E89: 14 | F89: --> | G89: 14
E90: 13 | F90: --> | G90: 13
E91: 12 | F91: --> | G91: 12
E92: 11 | F92: --> | G92: 11
E93: 10 | F93: --> | G93: 10
E94: 9 | F94: --> | G94: 9
E95: 8 | F95: --> | G95: 8
E96: 7 | F96: --> | G96: 7
E97: 6 | F97: --> | G97: 6
E98: 5 | F98: --> | G98: 5
E99: 4 | F99: --> | G99: 4
E100: 3 | F100: --> | G100: 3
E101: 2 | F101: --> | G101: 2
E102: 1 | F102: --> | G102: 1
